bitfinex-derivatives/quotes_ETHF0:USTF0_20210401
["timestamp","ask_amount","ask_price","bid_price","bid_amount"]
[1617274441393,65.09639926,1929.5,1928.3,3.97875]
[1617274441993,65.0815,1929.5,1928.3,3.97875]
[1617274442494,65.0815,1929.5,1928.7,2.90695]
[1617274442696,65.0815,1929.5,1928.7,4.26875]
[1617274443507,0.01490327,1929.6,1928.7,1.3618]
[1617274443700,68.7164,1929.0,1928.7,1.3618]
[1617274443896,68.7164,1929.0,1927.3,68.7164]
[1617274444096,70.0453,1929.0,1927.3,68.7164]
[1617274444500,70.0453,1929.0,1928.0,2.90695]
[1617274445097,68.7164,1929.0,1927.3,70.1933]
[1617274446499,68.7164,1929.0,1928.3,4.53105]
[1617274447398,0.01487633,1929.5,1928.3,4.53105]
[1617274448399,2.90695,1928.4,1928.3,4.53105]
[1617274448601,2.90695,1928.4,1928.3,2.90695]
[1617274449000,0.0148797,1929.4,1928.3,2.90695]
[1617274449200,0.01488031,1929.5,1928.3,4.43405]
[1617274450402,0.04465661,1929.7,1929.0,2.90695]
[1617274450801,0.04465661,1929.7,1929.0,4.04545]
[1617274451002,0.01488554,1929.7,1929.0,4.04545]
[1617274451401,0.01488554,1929.7,1929.0,1.1385]
[1617274451803,0.01488554,1929.7,1928.2,61.2276]
[1617274452003,0.01488324,1929.5,1928.2,61.2276]
[1617274452503,0.01488324,1929.5,1928.7,2.90695]
[1617274452704,0.04464919,1929.6,1928.7,2.90695]
[1617274453404,0.01488271,1929.6,1928.7,2.90695]
[1617274453603,0.01488271,1929.6,1928.7,4.34875]
[1617274454003,0.01488523,1929.7,1928.7,4.34875]
[1617274454405,0.01490611,1929.5,1928.7,4.34875]
[1617274454604,2.90695,1928.8,1928.7,4.34875]
[1617274458007,0.01490611,1929.5,1928.7,4.34875]
[1617274458213,0.01490463,1929.6,1928.7,4.34875]
[1617274458610,0.01490463,1929.6,1929.4,2.90695]
[1617274458811,0.01490828,1929.7,1929.4,4.02195]
[1617274459913,0.01491115,1929.8,1929.4,4.02195]
[1617274460114,0.01490897,1929.7,1929.4,1.115]
[1617274460513,2.90695,1929.5,1929.4,1.115]
[1617274464118,2.90695,1929.5,1928.9,76.0754]
[1617274464518,2.90695,1929.0,1928.9,76.0754]
[1617274467018,0.01491431,1929.7,1928.9,76.0754]
[1617274467420,0.0149135,1929.8,1928.9,76.0754]
[1617274468523,0.0149135,1929.8,1929.4,2.90695]
[1617274470624,2.90695,1929.5,1929.4,2.90695]
[1617274473228,4.52675,1929.5,1928.4,14.0238]
[1617274473429,77.6754,1929.3,1928.4,14.0238]
[1617274474028,77.6754,1929.3,1927.9,80.2594]
[1617274474029,77.6754,1929.3,1927.9,77.6754]
[1617274474629,77.6754,1929.3,1928.3,2.90695]
[1617274475230,77.69029327,1929.3,1928.3,2.90695]
[1617274476631,2.90695,1928.4,1928.3,2.90695]
[1617274476831,4.28975,1928.4,1928.3,2.90695]
[1617274480736,4.28975,1928.4,1928.1,2.90695]
[1617274481236,2.90695,1928.4,1928.1,2.90695]
[1617274482635,2.90695,1928.2,1928.1,2.90695]
[1617274487049,4.24075,1928.2,1927.3,14.6596]
[1617274487440,83.3063,1927.9,1927.3,14.6596]
[1617274488243,4.24075,1928.2,1927.3,14.6596]
[1617274488645,1.3338,1928.2,1927.4,2.90695]
[1617274490748,2.90695,1927.5,1927.2,67.41995]
[1617274491151,2.90695,1927.5,1927.2,2.90695]
[1617274491548,3.95295,1927.5,1927.2,2.90695]
[1617274492455,2.90695,1927.5,1927.2,2.90695]
[1617274492852,2.90695,1927.3,1927.2,2.90695]
[1617274494755,79.5183,1927.7,1927.2,2.90695]
[1617274495153,3.06210441,1928.7,1927.2,2.90695]
[1617274495554,3.06210441,1928.7,1927.3,83.368]
[1617274495953,30.0,1928.6,1927.3,83.368]
[1617274496255,0.01477876,1928.5,1927.3,83.368]
[1617274496858,2.90695,1927.4,1927.3,83.368]
[1617274498266,2.90695,1927.4,1927.2,2.90695]
[1617274499970,1.06207816,1928.7,1927.4,81.5109]
[1617274500174,0.01477816,1928.7,1927.4,81.5109]
[1617274500665,0.01477866,1928.8,1927.4,81.5109]
[1617274500866,0.01478073,1928.9,1927.9,2.90695]
[1617274501068,0.01478073,1928.9,1927.9,4.16565]
[1617274501270,81.54338393,1929.0,1927.9,4.16565]
[1617274502873,2.90695,1928.0,1927.9,4.16565]
[1617274506279,81.54340151,1929.0,1927.9,4.16565]
[1617274506481,76.4401,1928.8,1927.9,4.16565]
[1617274506887,77.4711,1928.8,1928.1,2.90695]
[1617274507082,0.0147967,1928.7,1928.1,2.90695]
[1617274508281,0.0147967,1928.7,1927.4,76.4401]
[1617274508881,2.90695,1927.5,1927.4,76.4401]
[1617274509082,2.90695,1927.5,1927.2,3.91735]
[1617274510782,2.90695,1927.3,1927.2,3.91735]
[1617274511585,73.8971,1927.8,1927.2,3.91735]
[1617274512787,73.8971,1927.8,1927.7,2.90695]
[1617274513586,73.8971,1927.8,1926.8,1.407]
[1617274514787,73.8971,1927.8,1927.7,2.90695]
[1617274515588,73.8971,1927.8,1926.8,1.407]
[1617274515789,0.01477371,1928.5,1926.6,14.9928]
[1617274515989,84.2353,1927.2,1926.6,14.9928]
[1617274516991,84.2353,1927.2,1926.9,2.90695]
[1617274518994,2.90695,1927.0,1926.9,2.90695]
[1617274520996,2.90695,1927.0,1926.7,2.90695]
[1617274522598,58.188,1926.8,1926.7,2.90695]
[1617274522896,61.09495,1926.8,1926.7,2.90695]
[1617274524699,61.09495,1926.8,1925.8,15.131]
[1617274524902,2.90695,1925.9,1925.8,18.03795]
[1617274525101,2.90695,1925.9,1925.8,2.90695]
[1617274528603,1.3678,1927.4,1925.8,2.90695]
[1617274528804,80.0356,1927.2,1925.8,82.94255]
[1617274529005,80.0356,1927.2,1926.4,2.90695]
[1617274530903,2.90695,1926.5,1926.4,2.90695]
[1617274539114,74.4934,1926.6,1926.4,2.90695]
[1617274543718,0.01472402,1928.6,1926.4,2.90695]
[1617274543918,86.0871,1927.5,1926.4,4.31615]
[1617274545120,86.0871,1927.5,1927.2,2.90695]
[1617274547023,2.90695,1927.3,1927.2,2.90695]
[1617274548225,2.90695,1927.3,1926.3,86.0871]
[1617274548425,2.90695,1927.3,1925.9,45.0716]
[1617274548625,64.428,1926.8,1925.9,15.0716]
[1617274549125,64.428,1926.8,1926.7,2.90695]
[1617274551127,67.33495,1926.8,1926.7,2.90695]
[1617274557235,68.64295,1926.8,1926.7,2.90695]
[1617274559235,67.33495,1926.8,1926.7,2.90695]
[1617274573747,67.33495,1926.8,1925.9,15.0716]
[1617274574251,2.90695,1926.8,1925.9,15.0716]
[1617274574451,79.3575,1926.0,1925.9,15.0716]
[1617274574752,79.3575,1926.0,1925.2,1.3608]
[1617274574950,79.3575,1926.0,1924.9,79.3575]
[1617274575150,2.90695,1926.8,1924.8,32.584]
[1617274575351,1.3016,1927.3,1926.3,2.90695]
[1617274577362,2.90695,1926.4,1926.3,2.90695]
[1617274583566,75.8011,1926.3,1924.8,102.7249]
[1617274585271,75.8011,1926.3,1926.2,2.90695]
[1617274587472,78.70805,1926.3,1926.2,2.90695]
[1617274590778,75.8011,1926.3,1926.2,2.90695]
[1617274593379,78.70805,1926.3,1926.2,2.90695]
[1617274601088,2.90695,1926.3,1926.2,2.90695]
[1617274601289,72.27045,1926.3,1926.2,2.90695]
[1617274601490,2.90695,1926.3,1926.2,2.90695]
[1617274604290,73.30175,1926.3,1926.2,2.90695]
[1617274604491,2.90695,1926.3,1926.2,2.90695]
[1617274604690,0.01477524,1926.7,1926.3,71.6704]
[1617274604892,0.01477524,1926.7,1926.3,72.7756]
[1617274605191,0.0147777,1926.9,1926.3,72.7756]
[1617274605490,0.0147777,1926.9,1926.8,2.90695]
[1617274605690,0.0147777,1926.9,1926.8,4.45955]
[1617274606692,0.01478647,1927.0,1926.8,4.45955]
[1617274607091,0.04436751,1927.1,1927.0,62.657]
[1617274607492,0.01479457,1927.1,1927.0,65.56395]
[1617274607892,0.01480925,1927.3,1927.0,2.90695]
[1617274608097,0.01481257,1927.4,1927.0,2.90695]
[1617274608495,0.01481474,1927.5,1927.4,86.5239]
[1617274608692,0.01481474,1927.5,1927.4,87.6012]
[1617274609092,2.92176853,1927.6,1927.4,87.6012]
[1617274609495,0.01482305,1927.7,1927.5,2.90695]
[1617274610894,0.01481126,1927.8,1927.5,2.90695]
[1617274611095,0.02962251,1927.9,1927.5,2.90695]
[1617274611294,0.05924502,1928.0,1927.5,2.90695]
[1617274611493,0.05924502,1928.0,1927.4,87.6012]
[1617274611494,0.05924502,1928.0,1927.9,2.90695]
[1617274611896,0.05924502,1928.0,1927.9,4.45665]
[1617274612696,0.14811255,1928.1,1927.9,4.45665]
[1617274612897,0.14816952,1928.2,1927.9,4.45665]
[1617274613503,0.14816952,1928.2,1928.1,2.90695]
[1617274613704,3.0551584,1928.3,1928.1,2.90695]
[1617274613900,3.0551584,1928.3,1928.2,86.7593]
[1617274614097,0.29641679,1928.4,1928.2,86.7593]
[1617274614298,8.366e-05,1928.5,1928.2,86.7593]
[1617274614499,0.2964643,1928.5,1928.2,86.7593]
[1617274614698,0.71151431,1928.8,1928.2,86.7593]
[1617274614898,0.71190925,1929.0,1928.2,86.7593]
[1617274615301,0.71213967,1929.2,1928.2,86.7593]
[1617274615498,2.90695,1929.2,1929.1,2.90695]
[1617274615699,2.90695,1929.2,1929.1,4.04005]
[1617274617399,0.70830621,1930.0,1929.1,4.04005]
[1617274617600,0.70830621,1930.0,1929.8,4.41875]
[1617274617801,0.7091727,1930.5,1929.8,4.41875]
[1617274618201,0.70950688,1930.6,1930.5,82.052]
[1617274618600,0.91195537,1930.9,1930.5,82.052]
[1617274618601,0.70954014,1930.7,1930.5,82.052]
[1617274619300,0.70970103,1930.8,1930.5,82.052]
[1617274619500,2.90695,1930.6,1930.5,82.052]
[1617274621506,2.90695,1930.6,1930.4,1.6592]
[1617274621703,2.90695,1930.6,1930.5,2.90695]
[1617274625717,2.90695,1930.6,1930.5,64.33855]
[1617274626523,2.90695,1930.6,1930.5,2.90695]
[1617274632826,2.90695,1930.6,1929.2,14.8963]
[1617274633027,66.4987,1930.1,1929.2,14.8963]
[1617274633227,68.1514,1930.1,1929.2,14.8963]
[1617274633829,68.1514,1930.1,1929.7,2.90695]
[1617274635933,2.0,1931.0,1929.9,2.90695]
[1617274636140,2.0,1931.0,1929.9,4.26785]
[1617274636938,32.0,1931.0,1929.9,4.26785]
[1617274637140,33.0325,1931.0,1929.9,4.26785]
[1617274637337,33.0325,1931.0,1929.9,2.90695]
[1617274637840,2.90695,1930.0,1929.9,2.90695]
[1617274639842,2.90695,1930.0,1929.4,2.90695]
[1617274640042,60.0598,1929.9,1929.2,14.8963]
[1617274640242,60.0598,1929.9,1928.7,60.0598]
[1617274641844,60.0598,1929.9,1929.7,2.90695]
[1617274642245,2.0,1931.3,1929.7,2.90695]
[1617274642444,70.7421,1930.8,1929.8,69.834]
[1617274642644,68.7421,1930.8,1929.8,69.834]
[1617274643843,68.7421,1930.8,1930.4,2.90695]
[1617274644043,68.7421,1930.8,1930.4,4.13235]
[1617274645946,68.7421,1930.8,1930.7,2.90695]
[1617274646148,32.0,1931.7,1930.7,2.90695]
[1617274646347,118.7493,1931.7,1930.7,2.90695]
[1617274647952,2.90695,1930.8,1930.7,2.90695]
[1617274653973,2.90695,1930.8,1930.5,2.90695]
[1617274654576,4.06365,1930.8,1930.5,2.90695]
[1617274656175,2.90695,1930.6,1930.5,2.90695]
[1617274657077,2.90695,1930.6,1930.1,58.1382]
[1617274658082,1.1567,1930.8,1930.3,2.90695]
[1617274659680,2.0,1931.0,1930.3,2.90695]
[1617274660181,2.90695,1930.4,1929.2,14.3074]
[1617274660381,71.839,1930.3,1929.2,14.3074]
[1617274662083,71.839,1930.3,1929.7,2.90695]
[1617274662282,71.839,1930.3,1929.1,71.839]
[1617274662482,73.839,1930.3,1929.1,71.839]
[1617274662683,2.0,1930.3,1927.8,14.9065]
[1617274662884,69.8513,1929.5,1927.8,14.9065]
[1617274663083,71.2177,1929.5,1927.8,14.9065]
[1617274664083,71.2177,1929.5,1929.2,2.90695]
[1617274666189,4.27335,1929.5,1929.4,2.90695]
[1617274672092,4.27335,1929.5,1929.2,2.90695]
[1617274672392,2.90695,1929.5,1929.2,2.90695]
[1617274674093,68.1849,1929.7,1929.2,2.90695]
[1617274674094,2.90695,1929.3,1929.2,2.90695]
[1617274681905,2.90695,1929.3,1928.8,68.1849]
[1617274682303,1.156,1929.5,1929.0,2.90695]
[1617274682504,1.156,1929.5,1927.8,14.9065]
[1617274682704,59.2119,1929.1,1928.0,59.2119]
[1617274682904,60.2476,1929.1,1928.0,59.2119]
[1617274684406,60.2476,1929.1,1928.6,2.90695]
[1617274686006,60.2476,1929.1,1928.0,59.2119]
[1617274686207,85.9655,1928.5,1927.8,14.9065]
[1617274686414,87.2869,1928.5,1928.2,2.90695]
[1617274688207,87.2869,1928.5,1927.3,85.9655]
[1617274688407,87.2869,1928.5,1928.1,2.90695]
[1617274689407,87.2869,1928.5,1927.3,85.9655]
[1617274689608,1.3214,1928.5,1926.7,13.9972]
[1617274690008,73.4524,1927.7,1926.7,13.9972]
[1617274690209,74.795,1927.7,1926.7,13.9972]
[1617274690410,74.795,1927.7,1927.6,2.90695]
[1617274692211,2.90695,1927.8,1927.6,2.90695]
[1617274693612,72.6984,1928.1,1927.6,2.90695]
[1617274693812,3.0371,1929.3,1927.6,2.90695]
[1617274694014,78.291,1928.8,1927.9,78.291]
[1617274694213,78.291,1928.8,1927.9,79.3115]
[1617274694412,78.291,1928.8,1928.6,2.90695]
[1617274696515,2.90695,1928.7,1928.6,2.90695]
[1617274697115,2.90695,1928.7,1927.9,78.291]
[1617274698619,78.291,1928.8,1928.1,2.90695]
[1617274698817,109.3248,1928.8,1928.1,2.90695]
[1617274699417,31.0338,1928.8,1928.1,2.90695]
[1617274699617,33.0338,1928.8,1928.1,2.90695]
[1617274700618,4.51395,1928.2,1928.1,2.90695]
[1617274701222,34.51395,1928.2,1928.1,2.90695]
[1617274701421,34.01395,1928.2,1928.1,2.90695]
[1617274703123,34.01395,1928.2,1927.0,77.6116]
[1617274703326,34.01395,1928.2,1925.8,14.8545]
[1617274703522,79.2169,1927.1,1925.8,14.8545]
[1617274704623,79.2169,1927.1,1927.0,2.90695]
[1617274705825,77.9897,1927.1,1927.0,2.90695]
[1617274708832,2.90695,1927.2,1927.0,2.90695]
[1617274718036,75.3256,1927.3,1926.6,75.3256]
[1617274718837,75.3256,1927.3,1927.2,2.90695]
[1617274720841,78.23255,1927.3,1927.2,2.90695]
[1617274722444,2.0,1928.6,1927.2,2.90695]
[1617274722643,69.7434,1927.9,1927.2,72.65035]
[1617274722846,69.7434,1927.9,1927.6,2.90695]
[1617274724749,2.90695,1927.7,1927.6,2.90695]
[1617274725150,30.0,1929.2,1927.6,2.90695]
[1617274725351,63.2187,1928.8,1927.8,64.5556]
[1617274726853,63.2187,1928.8,1928.2,2.90695]
[1617274727055,1.0246,1929.3,1928.2,2.90695]
[1617274727253,61.6258,1928.6,1928.2,2.90695]
[1617274727653,61.6258,1928.6,1927.4,1.5421]
[1617274727853,62.6741,1928.6,1927.3,61.6258]
[1617274728755,62.6741,1928.6,1927.8,2.90695]
[1617274730154,92.6741,1928.6,1927.8,2.90695]
[1617274730756,2.90695,1927.9,1927.8,2.90695]
[1617274730955,2.90695,1927.9,1927.3,61.6258]
[1617274731159,62.1308,1927.7,1926.8,62.1308]
[1617274732961,62.1308,1927.7,1927.6,2.90695]
[1617274734863,65.03775,1927.7,1927.6,2.90695]
[1617274735264,65.03775,1927.7,1926.8,62.1308]
[1617274735465,66.32225,1927.7,1926.8,62.1308]
[1617274736873,63.4153,1927.7,1927.5,2.90695]
[1617274738175,62.1308,1927.7,1927.5,2.90695]
[1617274738875,2.90695,1927.6,1927.5,2.90695]
[1617274740875,2.90695,1927.6,1927.3,2.90695]
[1617274741376,4.14065,1927.6,1927.3,2.90695]
[1617274742277,4.14065,1927.6,1926.8,62.1308]
[1617274742479,4.14065,1927.6,1925.4,32.584]
[1617274742877,1.2337,1927.6,1927.1,2.90695]
[1617274743078,85.9133,1927.2,1927.1,2.90695]
[1617274743278,86.991,1927.2,1927.1,2.90695]
[1617274744279,86.991,1927.2,1926.4,85.9133]
[1617274744881,86.991,1927.2,1926.8,2.90695]
[1617274745480,1.0777,1927.2,1926.8,2.90695]
[1617274746882,2.90695,1926.9,1926.8,2.90695]
[1617274747483,2.90695,1926.9,1925.7,63.0648]
[1617274747685,59.172,1926.8,1925.7,63.0648]
[1617274747882,60.3319,1926.8,1925.7,63.0648]
[1617274748982,60.3319,1926.8,1926.5,85.1367]
[1617274748983,1.1599,1926.8,1926.5,85.1367]
[1617274749182,1.0318,1927.0,1926.5,85.1367]
[1617274749585,85.1367,1927.2,1926.5,85.1367]
[1617274750885,85.1367,1927.2,1926.7,2.90695]
[1617274752989,2.90695,1926.8,1926.7,2.90695]
[1617274753889,1.0259,1927.0,1926.7,2.90695]
[1617274754089,1.0259,1927.0,1926.7,4.53955]
[1617274754490,72.1821,1927.8,1927.0,84.857]
[1617274754890,72.1821,1927.8,1927.3,2.90695]
[1617274755293,72.1821,1927.8,1927.3,4.44625]
[1617274756998,2.90695,1927.4,1927.3,4.44625]
[1617274757599,2.90695,1927.4,1927.3,2.90695]
[1617274758199,63.2172,1927.1,1926.5,63.2172]
[1617274759100,63.2172,1927.1,1927.0,2.90695]
[1617274759500,63.2172,1927.1,1926.5,63.2172]
[1617274761102,63.2172,1927.1,1926.7,2.90695]
[1617274763014,63.2172,1927.1,1927.0,2.90695]
[1617274764107,30.0,1928.0,1927.0,2.90695]
[1617274764308,67.0103,1927.8,1927.0,2.90695]
[1617274765008,2.90695,1927.1,1927.0,2.90695]
[1617274767911,2.90695,1927.1,1926.9,67.0103]
[1617274769211,2.90695,1927.1,1926.9,69.91725]
[1617274769411,2.90695,1927.1,1926.9,2.90695]
[1617274770013,69.5536,1927.0,1926.9,2.90695]
[1617274771113,2.90695,1927.1,1926.6,2.90695]
[1617274771313,2.90695,1927.1,1926.9,82.9272]
[1617274773115,2.90695,1927.1,1927.0,2.90695]
[1617274774717,82.7431,1927.0,1926.3,82.7431]
[1617274775116,82.7431,1927.0,1926.8,2.90695]
[1617274777117,2.90695,1926.9,1926.8,2.90695]
[1617274787129,83.9525,1927.6,1926.9,83.9525]
[1617274787329,83.9525,1927.6,1927.2,4.56095]
[1617274789233,2.90695,1927.3,1927.2,4.56095]
[1617274796441,2.90695,1927.3,1927.2,2.90695]
[1617274796839,0.05947599,1927.6,1927.3,69.9399]
[1617274797239,0.05949549,1927.9,1927.3,69.9399]
[1617274797440,2.90695,1928.0,1927.5,2.90695]
[1617274797839,0.05953139,1928.2,1927.5,2.90695]
[1617274798639,0.05955203,1928.3,1927.5,2.90695]
[1617274798839,0.29776015,1928.5,1927.5,2.90695]
[1617274798840,0.05957932,1928.5,1927.5,2.90695]
[1617274799042,0.05957932,1928.5,1928.3,84.6858]
[1617274799243,0.05957932,1928.5,1928.3,85.8123]
[1617274799440,0.05957932,1928.5,1928.4,2.90695]
[1617274801040,0.05961582,1928.6,1928.4,2.90695]
[1617274801440,2.90695,1928.5,1928.4,2.90695]
[1617274801643,2.96655807,1928.5,1928.4,2.90695]
[1617274801841,2.96655807,1928.5,1928.1,66.8835]
[1617274802042,4.03625,1928.5,1925.8,34.23504233]
[1617274802242,68.4479,1928.1,1927.0,66.9234]
[1617274802641,70.6251,1927.4,1926.3,70.6251]
[1617274802842,71.9088,1927.4,1926.3,70.6251]
[1617274803243,1.2837,1927.4,1925.4,3.6072]
[1617274803444,1.2837,1927.4,1927.1,2.90695]
[1617274805044,1.34321544,1927.4,1927.1,2.90695]
[1617274805445,60.0431,1927.1,1926.9,2.90695]
[1617274806045,92.0431,1927.1,1926.9,2.90695]
[1617274806249,90.0431,1927.1,1925.3,75.3038]
[1617274807448,90.0431,1927.1,1926.2,2.90695]
[1617274807649,90.0431,1927.1,1923.9,44.7298]
[1617274807650,0.05944589,1926.7,1923.9,44.7298]
[1617274807848,1.10934589,1926.7,1923.9,44.7298]
[1617274808046,74.0244,1925.1,1923.9,44.7298]
[1617274808247,75.2393,1925.1,1923.9,14.7298]
[1617274809348,75.2393,1925.1,1925.0,2.90695]
[1617274809746,84.0795,1925.1,1925.0,2.90695]
[1617274811147,1.2149,1925.1,1925.0,2.90695]
[1617274813350,2.90695,1925.2,1925.0,2.90695]
[1617274814253,58.2271,1925.1,1925.0,2.90695]
[1617274814454,59.4525,1925.1,1925.0,2.90695]
[1617274815853,1.2254,1925.1,1925.0,2.90695]
[1617274816053,2.90695,1925.2,1925.1,68.0433]
[1617274817753,0.05942026,1926.0,1925.1,68.0433]
[1617274818153,30.05942336,1926.1,1925.1,68.0433]
[1617274818552,0.05942336,1926.1,1925.0,4.24365]
[1617274818752,0.05942336,1926.1,1926.0,64.266]
[1617274818954,0.05943858,1926.2,1926.0,65.6574]
[1617274819352,0.0592656,1926.7,1926.0,65.6574]
[1617274819552,0.0592656,1926.7,1926.3,2.90695]
[1617274819953,0.0592656,1926.7,1925.0,1.3367]
[1617274820153,60.2112,1926.5,1924.5,58.2112]
[1617274820354,90.2112,1926.5,1924.5,58.2112]
[1617274821459,90.2112,1926.5,1925.6,2.90695]
[1617274822266,90.27044802,1926.5,1925.6,2.90695]
[1617274822965,90.2112,1926.5,1925.6,2.90695]
[1617274823464,2.90695,1925.7,1925.6,2.90695]
[1617274823864,2.90695,1925.7,1925.6,3.95685]
[1617274824064,2.90695,1925.7,1925.6,2.90695]
[1617274825165,4.90695,1925.7,1924.5,58.2112]
[1617274825366,4.90695,1925.7,1923.5,30.0]
[1617274825566,63.7059,1925.3,1925.0,2.90695]
[1617274825766,65.0463,1925.3,1925.0,2.90695]
[1617274826766,96.0755,1925.3,1925.0,2.90695]
[1617274827467,2.90695,1925.1,1925.0,2.90695]
[1617274827868,32.90695,1925.1,1925.0,2.90695]
[1617274828270,32.90695,1925.1,1925.0,2.51255]
[1617274828469,34.90695,1925.1,1925.0,2.51255]
[1617274829470,32.90695,1925.1,1925.0,2.51255]
[1617274829872,34.90695,1925.1,1925.0,2.51255]
[1617274830472,32.90695,1925.1,1925.0,2.51255]
[1617274830871,2.90695,1925.1,1925.0,2.51255]
[1617274831471,32.90695,1925.1,1925.0,2.51255]
[1617274832576,2.90695,1925.1,1925.0,2.51255]
[1617274835276,2.90695,1925.1,1924.0,1.1933]
[1617274835677,63.7059,1925.3,1924.9,2.90695]
[1617274837679,2.90695,1925.0,1924.9,2.90695]
[1617274838079,4.31535,1925.0,1923.7,63.7059]
[1617274838278,4.31535,1925.0,1923.1,14.3652]
[1617274838479,62.0661,1924.4,1923.1,14.3652]
[1617274838681,1.4186,1924.4,1923.1,14.3652]
[1617274838881,1.4186,1924.4,1923.6,62.0071]
[1617274839680,4.32555,1924.4,1924.3,2.90695]
[1617274839881,2.90695,1924.4,1924.3,2.90695]
[1617274841082,80.57835,1924.4,1924.3,2.90695]
[1617274845085,82.11655,1924.4,1924.3,2.90695]
[1617274847789,80.57835,1924.4,1924.3,2.90695]
[1617274848890,2.90695,1924.4,1924.3,2.90695]
[1617274853696,3.91205,1924.4,1924.3,2.90695]
[1617274856898,2.90695,1924.4,1924.3,2.90695]
[1617274857900,4.47695,1924.4,1924.3,2.90695]
[1617274861909,2.90695,1924.4,1924.3,2.90695]
[1617274866221,1.0449,1924.7,1924.3,2.90695]
[1617274866625,67.9226,1925.3,1924.3,2.90695]
[1617274866817,1.0326,1926.3,1924.3,2.90695]
[1617274867018,93.5353,1926.9,1924.8,79.489]
[1617274867221,32.0,1926.8,1924.8,80.6404]
[1617274868018,32.0,1926.8,1925.3,2.90695]
[1617274868218,32.0,1926.8,1925.3,4.29225]
[1617274869917,2.90695,1925.4,1925.3,4.29225]
[1617274870118,32.90695,1925.4,1925.3,2.90695]
[1617274870319,71.1724,1925.3,1923.5,71.1724]
[1617274870518,30.0,1925.2,1923.5,71.1724]
[1617274871919,30.0,1925.2,1924.3,2.90695]
[1617274872120,32.0,1925.2,1924.3,2.90695]
[1617274873922,2.90695,1924.4,1924.3,2.90695]
[1617274878423,32.90695,1924.4,1923.1,14.3152]
[1617274878624,71.6087,1924.3,1923.1,14.3152]
[1617274878823,71.6087,1924.3,1922.6,71.6087]
[1617274879825,30.0,1924.2,1922.6,71.6087]
[1617274880025,30.0,1924.2,1923.7,2.90695]
[1617274882027,2.90695,1923.8,1923.7,2.90695]
[1617274882228,34.14135,1923.8,1923.7,2.90695]
[1617274884030,34.14135,1923.8,1923.5,2.90695]
[1617274884631,34.14135,1923.8,1923.5,2.07845]
[1617274886029,2.90695,1923.6,1923.5,2.07845]
[1617274887932,32.90695,1923.6,1922.6,71.6087]
[1617274888132,30.0,1923.6,1921.2,3.6388]
[1617274888331,30.0,1923.6,1921.6,79.4572]
[1617274888332,79.4572,1923.3,1921.6,79.4572]
[1617274888532,30.0,1923.2,1921.6,79.4572]
[1617274889333,30.0,1923.2,1921.6,80.4853]
[1617274889534,30.0,1923.2,1921.6,79.4572]
[1617274890033,30.0,1923.2,1922.5,2.90695]
[1617274890834,30.0,1923.2,1921.7,1.0326]
[1617274891034,79.0904,1922.6,1921.7,1.0326]
[1617274891235,110.2362,1922.6,1921.3,13.7443]
[1617274891634,1.1458,1922.6,1921.3,13.7443]
[1617274891835,1.1458,1922.6,1921.9,85.9168]
[1617274892036,1.1458,1922.6,1922.5,2.90695]
[1617274892235,2.90695,1922.9,1922.5,2.90695]
[1617274893437,85.9168,1923.7,1922.5,2.90695]
[1617274894037,2.90695,1923.2,1923.1,2.90695]
[1617274894237,85.9168,1923.7,1923.1,2.90695]
[1617274895444,2.0,1924.2,1923.1,2.90695]
[1617274895640,30.0,1924.3,1923.1,4.57155]
[1617274896041,1.0375,1924.4,1923.9,2.90695]
[1617274896240,1.0375,1924.4,1923.1,1.6646]
[1617274896241,31.0375,1924.4,1923.1,1.6646]
[1617274896441,31.0375,1924.4,1923.0,79.2753]
[1617274897041,31.0375,1924.4,1923.0,80.3263]
[1617274897042,1.0375,1924.4,1923.0,80.3263]
[1617274897441,79.2753,1924.5,1923.0,79.2753]
[1617274898041,30.0,1924.4,1923.6,2.90695]
[1617274898241,31.3922,1924.4,1923.6,2.90695]
[1617274898641,33.3922,1924.4,1923.0,79.2753]
[1617274899243,33.3922,1924.4,1922.1,15.0663]
[1617274899443,64.0717,1923.7,1922.1,15.0663]
[1617274899846,30.0,1923.6,1922.1,15.0663]
[1617274900047,2.90695,1922.7,1922.5,2.90695]
[1617274900648,82.84005,1922.7,1922.5,2.90695]
[1617274902545,2.90695,1922.7,1922.5,2.90695]
[1617274904147,2.90695,1922.9,1922.5,2.90695]
[1617274906150,2.90695,1922.6,1922.3,2.90695]
[1617274906349,4.09665,1922.6,1922.3,2.90695]
[1617274906549,79.7285,1922.5,1922.3,2.90695]
[1617274908255,2.90695,1922.4,1922.3,2.90695]
[1617274908955,2.90695,1922.4,1921.0,79.7285]
[1617274909755,2.90695,1922.4,1920.7,13.9458]
[1617274909956,2.90695,1922.4,1921.7,76.9723]
[1617274910157,2.90695,1922.6,1922.3,2.90695]
[1617274912157,2.90695,1922.6,1922.5,2.90695]
[1617274912358,1.0322,1923.6,1922.5,2.90695]
[1617274912557,2.0,1924.3,1922.6,80.2943]
[1617274912760,0.01464582,1924.4,1922.6,80.2943]
[1617274912958,80.32359165,1924.5,1922.6,80.2943]
[1617274912959,80.2943,1924.5,1922.6,80.2943]
[1617274914158,80.2943,1924.5,1923.9,2.90695]
[1617274914960,3.0418,1924.7,1923.9,2.90695]
[1617274915361,1.0418,1924.7,1923.9,2.90695]
[1617274915559,2.0,1924.7,1923.9,4.19345]
[1617274915761,30.01466989,1925.1,1923.9,4.19345]